bitfinex-derivatives/quotes_BTCF0:USTF0_20251207
["timestamp","ask_amount","ask_price","bid_price","bid_amount"]
[1765102979376,0.41824,89306.0,89305.0,0.00516798]
[1765102980589,0.41824,89306.0,89305.0,0.00316798]
[1765102981391,0.42224,89306.0,89305.0,0.00016798]
[1765102981779,0.42024,89306.0,89305.0,0.00016798]
[1765102981985,0.42524,89306.0,89305.0,0.00016798]
[1765102982691,0.05744,89302.0,89301.0,0.03022072]
[1765102983889,0.070637,89302.0,89301.0,0.03022072]
[1765102984290,0.070637,89302.0,89301.0,0.00465385]
[1765102984291,0.475637,89302.0,89301.0,0.00465385]
[1765102984482,0.0686376,89297.0,89296.0,0.07023707]
[1765102984785,0.4186376,89297.0,89296.0,0.07023707]
[1765102984987,0.4186376,89297.0,89296.0,0.02993]
[1765102985181,0.4186376,89297.0,89296.0,0.07023707]
[1765102985380,0.4186376,89297.0,89296.0,0.02993]
[1765102985886,0.4186376,89297.0,89296.0,0.03293]
[1765102986390,0.4186376,89297.0,89296.0,0.003]
[1765102986589,0.4186376,89297.0,89296.0,0.03593]
[1765102987290,0.4186376,89297.0,89296.0,0.03393]
[1765102987487,0.4196376,89297.0,89296.0,0.03093]
[1765102987986,0.4196376,89297.0,89296.0,0.02993]
[1765102991684,0.068768,89294.0,89293.0,0.09965505]
[1765102992292,0.068768,89294.0,89293.0,0.05934798]
[1765102992694,0.068768,89294.0,89293.0,0.06134798]
[1765102993893,0.068768,89294.0,89293.0,0.06434798]
[1765102994797,0.068768,89294.0,89293.0,0.06134798]
[1765102994989,0.068768,89294.0,89293.0,0.06434798]
[1765102996292,0.068768,89294.0,89293.0,0.06234798]
[1765102996496,0.068768,89294.0,89293.0,0.06434798]
[1765102996800,0.068768,89294.0,89293.0,0.10465505]
[1765103000302,0.068768,89294.0,89293.0,0.06434798]
[1765103008216,0.086018,89294.0,89293.0,0.06434798]
[1765103009125,0.086018,89294.0,89293.0,0.12451926]
[1765103012221,0.086018,89294.0,89293.0,0.06434798]
[1765103035834,0.02897798,89302.0,89301.0,0.05613]
[1765103036024,0.06858498,89302.0,89301.0,0.05613]
[1765103036229,0.06858498,89302.0,89301.0,0.11662491]
[1765103036938,0.07158498,89302.0,89301.0,0.11662491]
[1765103037139,0.07658498,89302.0,89301.0,0.11662491]
[1765103037331,0.07658498,89302.0,89301.0,0.05613]
[1765103039038,0.06858498,89302.0,89301.0,0.05613]
[1765103039238,0.06858498,89302.0,89301.0,0.06113]
[1765103041235,0.08506498,89302.0,89301.0,0.06113]
[1765103042941,0.48506498,89302.0,89301.0,0.005]
[1765103043646,0.48506498,89302.0,89301.0,0.002]
[1765103043942,0.0689974,89299.0,89298.0,0.04029353]
[1765103044132,0.4189974,89299.0,89298.0,0.04029353]
[1765103046050,0.4239974,89299.0,89298.0,0.04029353]
[1765103046347,0.4259974,89299.0,89298.0,0.04029353]
[1765103047746,0.3359974,89299.0,89298.0,0.09625353]
[1765103048049,0.3359974,89299.0,89298.0,0.05596]
[1765103052055,0.007,89299.0,89298.0,0.43596]
[1765103052349,0.007,89299.0,89298.0,0.44933]
[1765103052855,0.03523,89299.0,89298.0,0.44933]
[1765103053052,0.03523,89299.0,89298.0,0.81013]
[1765103053554,0.03023,89299.0,89298.0,0.81013]
[1765103053751,0.03023,89299.0,89298.0,0.81613]
[1765103054148,0.02823,89299.0,89298.0,0.81613]
[1765103055051,0.02823,89299.0,89298.0,0.82013]
[1765103056052,0.05653798,89302.0,89301.0,0.05598]
[1765103056254,0.05653798,89302.0,89301.0,0.496405]
[1765103057460,0.05653798,89302.0,89301.0,0.499405]
[1765103058160,0.05653798,89302.0,89301.0,0.504405]
[1765103059356,0.05653798,89302.0,89301.0,0.44398]
[1765103062259,0.05653798,89302.0,89301.0,0.504405]
[1765103062850,0.02839798,89302.0,89301.0,0.504405]
[1765103063567,0.05653798,89302.0,89301.0,0.504405]
[1765103063860,0.05653798,89302.0,89301.0,0.124405]
[1765103065154,0.05653798,89302.0,89301.0,0.06398]
[1765103065359,0.02839798,89302.0,89301.0,0.06298]
[1765103067461,0.05653798,89302.0,89301.0,0.06298]
[1765103073367,0.05653798,89302.0,89301.0,0.42378]
[1765103075260,0.05653798,89302.0,89301.0,0.484205]
[1765103077368,0.05653798,89302.0,89301.0,0.42378]
[1765103077560,0.05653798,89302.0,89301.0,0.48419074]
[1765103078366,0.05653798,89302.0,89301.0,0.42378]
[1765103087371,0.05653798,89302.0,89301.0,0.06298]
[1765103087674,0.05653798,89302.0,89301.0,0.42378]
[1765103089875,0.00016798,89302.0,89301.0,0.78737]
[1765103090277,0.02984798,89302.0,89301.0,0.78737]
[1765103090669,0.05781798,89302.0,89301.0,0.78737]
[1765103094482,0.05781798,89302.0,89301.0,1.30681]
[1765103095182,0.05781798,89302.0,89301.0,1.01322]
[1765103095483,0.07559798,89302.0,89301.0,1.01322]
[1765103095879,0.08679498,89302.0,89301.0,1.01322]
[1765103096181,0.07559798,89302.0,89301.0,1.01322]
[1765103096779,0.07559798,89302.0,89301.0,0.49378]
[1765103097078,0.07559798,89302.0,89301.0,0.9544171]
[1765103100682,0.07559798,89302.0,89301.0,0.3678]
[1765103100871,0.07559798,89302.0,89298.0,0.04030098]
[1765103100872,0.0111973,89300.0,89298.0,0.04030098]
[1765103101077,0.05579,89294.0,89293.0,0.00016798]
[1765103101382,0.0669889,89287.0,89286.0,0.00028]
[1765103101587,0.0669889,89287.0,89266.0,0.46141411]
[1765103101588,0.05579,89267.0,89266.0,0.3608]
[1765103101777,0.05579,89267.0,89255.0,0.3608]
[1765103101778,0.05579,89263.0,89262.0,0.05629]
[1765103102082,0.05579,89258.0,89257.0,0.05629]
[1765103102279,0.0669925,89258.0,89257.0,0.05629]
[1765103102479,0.0671237,89258.0,89257.0,0.05629]
[1765103103284,0.0671237,89258.0,89257.0,0.05929]
[1765103103583,0.0671237,89258.0,89257.0,0.03079]
[1765103103788,0.05579,89255.0,89254.0,0.44723478]
[1765103104288,0.05579,89255.0,89254.0,0.41709]
[1765103105485,0.05579,89255.0,89254.0,0.3628]
[1765103106380,0.05579,89255.0,89254.0,0.3648]
[1765103106776,0.05579,89255.0,89254.0,0.39259]
[1765103107390,0.05579,89255.0,89254.0,0.42109]
[1765103110397,0.0275412,89258.0,89257.0,0.05629]
[1765103110585,0.0275412,89258.0,89257.0,0.45629]
[1765103110896,0.0559212,89258.0,89257.0,0.45629]
[1765103111695,0.0559212,89258.0,89257.0,0.45729]
[1765103112188,0.0559212,89258.0,89257.0,0.45929]
[1765103117289,0.0559212,89258.0,89257.0,0.06929]
[1765103121994,0.0559212,89258.0,89257.0,0.43009]
[1765103125705,0.0559212,89258.0,89257.0,0.79009]
[1765103126500,0.0559212,89258.0,89257.0,0.42929]
[1765103126706,0.0559212,89258.0,89257.0,0.79009]
[1765103127612,0.0559212,89258.0,89257.0,0.51009]
[1765103128705,0.4759212,89258.0,89257.0,0.06093983]
[1765103128905,0.4759212,89258.0,89257.0,0.003]
[1765103129507,0.4759212,89258.0,89257.0,0.03008]
[1765103133612,0.4759212,89258.0,89257.0,0.05944]
[1765103139117,0.0559212,89258.0,89257.0,0.05944]
[1765103146013,0.0001312,89258.0,89257.0,0.45944]
[1765103148221,0.0574212,89258.0,89257.0,0.45944]
[1765103149814,0.0279212,89258.0,89257.0,0.45944]
[1765103151131,0.0001312,89258.0,89257.0,0.45944]
[1765103153326,0.37872,89274.0,89257.0,0.45944]
[1765103153327,0.0112013,89269.0,89265.0,0.0671917]
[1765103153622,0.0684889,89287.0,89286.0,0.05599]
[1765103153825,0.4784889,89287.0,89286.0,0.05599]
[1765103154918,0.4914889,89287.0,89286.0,0.05599]
[1765103155124,0.3714889,89287.0,89286.0,0.05599]
[1765103156130,0.3744889,89287.0,89286.0,0.05599]
[1765103156332,0.3614889,89287.0,89286.0,0.05599]
[1765103156530,0.3694889,89287.0,89286.0,0.05599]
[1765103156718,0.3664889,89287.0,89286.0,0.05599]
[1765103156924,0.3614889,89287.0,89286.0,0.05599]
[1765103157128,0.3694889,89287.0,89286.0,0.05599]
[1765103158137,0.0794889,89287.0,89286.0,0.05599]
[1765103161232,0.0764889,89287.0,89286.0,0.05599]
[1765103161540,0.0794889,89287.0,89286.0,0.05599]
[1765103161730,0.0714889,89287.0,89286.0,0.05699]
[1765103161930,0.0714889,89287.0,89286.0,0.001]
[1765103161931,0.4814889,89287.0,89286.0,0.001]
[1765103162438,0.4784889,89287.0,89286.0,0.003]
[1765103164037,0.4784889,89287.0,89286.0,0.03073]
[1765103164846,0.4784889,89287.0,89286.0,0.003]
[1765103165541,0.4784889,89287.0,89286.0,0.03073]
[1765103165848,0.4784889,89287.0,89286.0,0.003]
[1765103167555,0.4784889,89287.0,89286.0,0.03073]
[1765103171050,0.4784889,89287.0,89286.0,0.003]
[1765103180359,0.4784889,89287.0,89286.0,0.03316126]
[1765103181254,0.4784889,89287.0,89286.0,0.003]
[1765103199873,0.8392889,89287.0,89286.0,0.003]
[1765103202970,0.4784889,89287.0,89286.0,0.003]
[1765103208978,0.4784889,89287.0,89286.0,0.03320893]
[1765103210065,0.4784889,89287.0,89286.0,0.003]
[1765103210465,0.4884889,89287.0,89286.0,0.03058]
[1765103211472,0.4884889,89287.0,89286.0,0.06019]
[1765103215182,0.4884889,89287.0,89286.0,0.10044761]
[1765103215774,0.4884889,89287.0,89286.0,0.04325761]
[1765103216175,0.4884889,89287.0,89286.0,0.003]
[1765103260911,0.4884889,89287.0,89286.0,0.06054]
[1765103261410,0.4884889,89287.0,89286.0,0.03071]
[1765103263201,0.4884889,89287.0,89286.0,0.03073]
[1765103266216,0.4884889,89287.0,89286.0,0.003]
[1765103272913,0.4884889,89287.0,89286.0,0.03321613]
[1765103273917,0.4884889,89287.0,89281.0,0.04025761]
[1765103273918,0.0708799,89279.0,89278.0,0.04042559]
[1765103274115,1.3811599,89279.0,89278.0,0.00016798]
[1765103275119,1.3811599,89279.0,89278.0,0.00316798]
[1765103276519,1.3811599,89279.0,89278.0,0.00616798]
[1765103283516,1.3811599,89279.0,89278.0,0.03484798]
[1765103287721,1.3811599,89279.0,89278.0,0.00616798]
[1765103291228,0.0698706,89273.0,89272.0,0.04025761]
[1765103291424,0.0698706,89273.0,89268.0,0.04025761]
[1765103291425,0.05741,89269.0,89268.0,0.04025761]
[1765103291727,0.05741,89269.0,89267.0,0.04025761]
[1765103291728,0.0859913,89268.0,89267.0,0.04025761]
[1765103291930,0.4459913,89268.0,89267.0,0.04025761]
[1765103292129,0.4459913,89268.0,89267.0,0.06892761]
[1765103293225,0.4469913,89268.0,89267.0,0.02867]
[1765103293420,0.0859917,89265.0,89264.0,0.04025761]
[1765103293622,0.4759917,89265.0,89264.0,0.04025761]
[1765103294130,0.4759917,89265.0,89259.0,0.0605544]
[1765103294131,0.05741,89264.0,89263.0,0.06892761]
[1765103294330,0.45741,89264.0,89263.0,0.05615]
[1765103295225,0.45741,89264.0,89263.0,0.09639892]
[1765103295426,0.45741,89264.0,89263.0,0.09739892]
[1765103296526,0.45841,89264.0,89263.0,0.09739892]
[1765103300341,0.45841,89264.0,89263.0,0.05715]
[1765103303352,0.47077,89264.0,89263.0,0.05715]
[1765103305645,0.07077,89264.0,89263.0,0.05715]
[1765103305848,0.08841,89264.0,89263.0,0.05715]
[1765103306047,0.06063,89264.0,89263.0,0.05715]
[1765103306252,0.05841,89264.0,89263.0,0.05715]
[1765103311254,0.05841,89264.0,89263.0,0.41795]
[1765103312159,0.05841,89264.0,89263.0,0.47833642]
[1765103316158,0.05841,89264.0,89263.0,0.41795]
[1765103317465,0.05841,89264.0,89263.0,0.47836713]
[1765103317764,0.05841,89264.0,89263.0,0.41795]
[1765103317962,0.05841,89264.0,89263.0,0.47836716]
[1765103318167,0.05841,89264.0,89263.0,0.41795]
[1765103319662,0.05841,89264.0,89263.0,0.05715]
[1765103325059,0.05841,89264.0,89263.0,0.41795]
[1765103332364,0.05841,89264.0,89263.0,0.05715]
[1765103333472,0.06894,89264.0,89263.0,0.05715]
[1765103334368,0.42894,89264.0,89263.0,0.02967]
[1765103334765,0.42894,89264.0,89263.0,0.05775]
[1765103337263,0.42894,89264.0,89263.0,0.06148205]
[1765103337465,0.42894,89264.0,89263.0,0.001]
[1765103339672,0.78974,89264.0,89263.0,0.001]
[1765103344479,0.05676,89258.0,89257.0,0.03986064]
[1765103344662,0.067963,89254.0,89253.0,0.03023046]
[1765103344866,0.858763,89254.0,89253.0,0.03023046]
[1765103345267,0.05676,89252.0,89251.0,0.03023046]
[1765103345468,0.48676,89252.0,89251.0,0.03023046]
[1765103346366,0.07419,89247.0,89246.0,0.00028013]
[1765103346571,0.48419,89247.0,89246.0,0.00028013]
[1765103347781,0.48419,89247.0,89246.0,0.00328013]
[1765103348874,0.48419,89247.0,89246.0,0.00728013]
[1765103351371,0.48419,89247.0,89246.0,0.03504013]
[1765103351577,0.48419,89247.0,89246.0,0.06336013]
[1765103356687,0.84499,89247.0,89246.0,0.06336013]
[1765103358683,0.84499,89247.0,89246.0,0.03504013]
[1765103361186,0.48419,89247.0,89246.0,0.03504013]
[1765103361387,0.84499,89247.0,89246.0,0.03504013]
[1765103364390,0.84499,89247.0,89246.0,0.00728013]
[1765103365381,1.36463,89247.0,89246.0,0.00728013]
[1765103365780,1.36463,89247.0,89246.0,0.00405163]
[1765103366492,1.37663,89247.0,89246.0,0.004]
[1765103367592,0.07281,89244.0,89243.0,0.00016798]
[1765103367895,0.43281,89244.0,89243.0,0.00016798]
[1765103369190,0.44981,89244.0,89243.0,0.00016798]
[1765103369785,0.44981,89244.0,89243.0,0.05624798]
[1765103369987,0.96945,89244.0,89243.0,0.05624798]
[1765103370584,0.44981,89244.0,89243.0,0.05624798]
[1765103370786,0.96945,89244.0,89243.0,0.05624798]
[1765103371389,0.95166,89244.0,89243.0,0.05624798]
[1765103371787,0.95066,89244.0,89243.0,0.05624798]
[1765103371987,0.93866,89244.0,89243.0,0.05624798]
[1765103372194,0.95166,89244.0,89243.0,0.05724798]
[1765103372590,0.94566,89244.0,89243.0,0.05624798]
[1765103373295,0.96745,89244.0,89243.0,0.05624798]
[1765103373688,0.96445,89244.0,89243.0,0.05624798]
[1765103374496,0.96745,89244.0,89243.0,0.05624798]
[1765103374886,0.96345,89244.0,89243.0,0.05624798]
[1765103375391,0.95645,89244.0,89243.0,0.05624798]
[1765103375594,0.96845,89244.0,89243.0,0.05624798]
[1765103376099,0.96745,89244.0,89243.0,0.05624798]
[1765103376299,0.96745,89244.0,89243.0,0.08644651]
[1765103376700,0.96845,89244.0,89243.0,0.08644651]
[1765103376902,0.96445,89244.0,89243.0,0.08644651]
[1765103377098,0.96845,89244.0,89243.0,0.08644651]
[1765103384208,0.96845,89244.0,89243.0,0.05624798]
[1765103384396,0.96845,89244.0,89243.0,0.08649163]
[1765103385704,0.95645,89244.0,89243.0,0.08649163]
[1765103385911,0.95945,89244.0,89243.0,0.08649163]
[1765103386111,0.96045,89244.0,89243.0,0.08649163]
[1765103387111,0.95945,89244.0,89243.0,0.05624798]
[1765103387310,0.09602,89244.0,89243.0,0.05624798]
[1765103387811,0.015,89244.0,89243.0,0.40624798]
[1765103388413,0.011,89244.0,89243.0,0.40624798]
[1765103388813,0.007,89244.0,89243.0,0.40624798]
[1765103389112,0.38948,89247.0,89246.0,0.058]
[1765103390011,0.02868,89247.0,89246.0,0.058]
[1765103390501,0.02868,89247.0,89246.0,0.06]
[1765103391207,0.02968,89247.0,89246.0,0.06]
[1765103394815,0.05689,89247.0,89246.0,0.06]
[1765103397313,0.05689,89247.0,89246.0,0.4208]
[1765103401812,0.05689,89247.0,89246.0,0.8508]
[1765103402319,0.02968,89247.0,89246.0,0.8508]
[1765103403319,0.05918,89247.0,89246.0,0.54028]
[1765103403915,0.05918,89247.0,89246.0,0.85028]
[1765103404419,0.0703839,89247.0,89246.0,0.43028]
[1765103404625,0.0703839,89247.0,89246.0,0.4208]
[1765103408826,0.05918,89247.0,89246.0,0.4208]
[1765103410024,0.05918,89247.0,89246.0,0.8508]
[1765103411024,0.02968,89247.0,89246.0,0.8508]
[1765103411225,0.05918,89247.0,89246.0,0.8508]
[1765103411728,0.001,89247.0,89246.0,0.8508]
[1765103413316,0.001,89247.0,89246.0,0.91125613]
[1765103414430,0.02985,89247.0,89246.0,0.91125613]
[1765103415329,0.02985,89247.0,89246.0,0.8508]
[1765103418930,0.001,89247.0,89246.0,0.8508]
[1765103420128,0.05773807,89255.0,89254.0,0.05687]
[1765103420329,0.03055229,89255.0,89254.0,0.09718214]
[1765103420529,0.00183229,89255.0,89254.0,0.09718214]
[1765103420831,0.00183229,89255.0,89254.0,0.05687]
[1765103421032,0.00183229,89255.0,89254.0,0.068073]
[1765103421227,0.00183229,89255.0,89254.0,0.069073]
[1765103421528,0.00483229,89255.0,89254.0,0.069073]
[1765103422928,0.00483229,89255.0,89254.0,0.068073]
[1765103423134,0.03355229,89255.0,89254.0,0.069073]
[1765103423327,0.03055229,89255.0,89254.0,0.069073]
[1765103423531,0.03255229,89255.0,89254.0,0.069073]
[1765103431234,0.03255229,89255.0,89254.0,0.085583]
[1765103432041,0.03255229,89255.0,89254.0,0.13012107]
[1765103432242,0.03255229,89255.0,89254.0,0.19058929]
[1765103433043,0.03255229,89255.0,89254.0,0.50685122]
[1765103433339,0.002,89255.0,89254.0,0.836383]
[1765103433942,0.00016807,89263.0,89262.0,0.082232]
[1765103434138,0.00016807,89263.0,89262.0,0.482232]
[1765103436034,0.00016807,89263.0,89262.0,0.484232]
[1765103436440,0.00016807,89263.0,89262.0,0.104232]
[1765103436441,0.05773807,89263.0,89262.0,0.104232]
[1765103437442,0.02901807,89263.0,89262.0,0.466032]
[1765103438040,0.02901807,89263.0,89262.0,0.47731065]
[1765103438041,0.05773807,89263.0,89262.0,0.47731065]
[1765103438242,0.05773807,89263.0,89262.0,0.51756781]
[1765103439440,0.06893997,89263.0,89262.0,0.50628916]
[1765103439942,0.06893997,89263.0,89262.0,0.47508716]
[1765103441349,0.06893997,89263.0,89262.0,0.43483]
[1765103443241,0.06893997,89263.0,89262.0,0.05987]
[1765103447944,0.49893997,89263.0,89262.0,0.05987]
[1765103450249,0.49893997,89263.0,89262.0,0.04325923]
[1765103450446,0.49893997,89263.0,89262.0,0.03320185]
[1765103450648,0.49893997,89263.0,89262.0,0.003]
[1765103451150,0.49893997,89263.0,89262.0,0.03121]
[1765103453543,0.49893997,89263.0,89262.0,0.003]
[1765103455350,0.49893997,89263.0,89256.0,0.04025923]
[1765103455351,0.0112028,89256.0,89255.0,0.03020185]
[1765103455550,0.5059028,89256.0,89255.0,0.03020185]
[1765103456340,0.8667028,89256.0,89255.0,0.03020185]
[1765103456549,0.8667028,89256.0,89252.0,0.03020185]
[1765103456550,0.0842132,89253.0,89252.0,0.03020185]
[1765103456748,0.0842132,89253.0,89243.0,0.06059009]
[1765103456749,0.05591,89251.0,89250.0,0.03020185]
[1765103456947,0.0842135,89250.0,89249.0,0.03020185]
[1765103457155,0.4542135,89250.0,89249.0,0.03020185]
[1765103458059,0.4542135,89250.0,89249.0,0.03420185]
[1765103458457,0.4542135,89250.0,89249.0,0.03820185]
[1765103459365,0.4542135,89250.0,89249.0,0.008]
[1765103460555,0.4542135,89250.0,89249.0,0.0377]
[1765103460953,0.0671135,89250.0,89249.0,0.06646]
[1765103461656,0.0671135,89250.0,89249.0,0.09664893]
[1765103462661,0.3608,89255.0,89254.0,0.05846]
[1765103462662,0.4000529,89255.0,89254.0,0.05846]
[1765103462862,0.4279129,89255.0,89254.0,0.05846]
[1765103463460,0.0671125,89258.0,89257.0,0.05846]
[1765103464266,0.05591,89258.0,89257.0,0.05846]
[1765103464567,0.05591,89258.0,89257.0,0.06046]
[1765103464768,0.05591,89258.0,89257.0,0.06146]
[1765103467165,0.067112,89262.0,89260.0,0.01725]
[1765103467462,0.107112,89262.0,89261.0,0.05846]
[1765103467671,0.447112,89262.0,89261.0,0.05846]
[1765103467858,0.147112,89262.0,89261.0,0.05846]
[1765103468259,0.147112,89262.0,89231.0,0.08058354]
[1765103468260,0.05591,89232.0,89231.0,0.08058354]
[1765103468462,0.05591,89216.0,89215.0,0.000113]
[1765103468670,0.0671178,89216.0,89215.0,0.000113]
[1765103469267,0.0671178,89216.0,89215.0,0.012033]
[1765103469670,0.0671178,89216.0,89215.0,0.006073]
[1765103469971,0.0671178,89216.0,89215.0,0.18771115]
[1765103470577,0.0681178,89216.0,89215.0,0.18771115]
[1765103470772,0.0681178,89216.0,89215.0,0.18871115]
[1765103471173,0.0691178,89216.0,89215.0,0.18871115]
[1765103478076,0.0691178,89216.0,89215.0,0.19467115]
[1765103479376,0.4991178,89216.0,89215.0,0.18275115]
[1765103481472,0.4991178,89216.0,89215.0,5e-08]
[1765103481781,0.0691988,89208.0,89207.0,0.00016807]
[1765103481981,1.3608788,89208.0,89207.0,0.00016807]
[1765103482481,1.3609999,89208.0,89207.0,0.00016807]
[1765103482681,1.3609999,89208.0,89192.0,0.3608]
[1765103482682,0.0692007,89193.0,89192.0,0.3608]
[1765103482880,0.4292007,89193.0,89192.0,0.3608]
[1765103483077,0.4292007,89193.0,89192.0,0.38833]
[1765103483284,0.4292007,89193.0,89192.0,0.41628]
[1765103483984,0.4292007,89193.0,89192.0,0.42428]
[1765103484576,0.02908,89193.0,89192.0,0.42428]
[1765103484773,0.05799,89193.0,89192.0,0.42428]
[1765103487079,0.0112106,89194.0,89193.0,0.05548]
[1765103487589,0.0112104,89196.0,89195.0,0.07331]
[1765103488087,0.0692004,89196.0,89195.0,0.07331]
[1765103489282,0.0692004,89196.0,89195.0,0.07631]
[1765103489789,0.0692004,89196.0,89195.0,0.07931]
[1765103490691,0.0692004,89196.0,89195.0,0.06148]
[1765103491187,0.0402904,89196.0,89195.0,0.07931]
[1765103491391,0.0402899,89200.0,89199.0,0.05548]
[1765103491984,0.0691999,89200.0,89199.0,0.05548]
[1765103492578,0.0691999,89200.0,89199.0,0.05848]
[1765103492784,0.0691999,89200.0,89199.0,0.06048]
[1765103494997,0.4560999,89200.0,89199.0,0.005]
[1765103495193,0.8168999,89200.0,89199.0,0.005]
[1765103496393,0.84188111,89200.0,89199.0,0.005]
[1765103499898,0.45498111,89200.0,89199.0,0.06048]
[1765103503199,0.02498121,89200.0,89199.0,0.06048]
[1765103508797,0.05458121,89200.0,89199.0,0.06048]
[1765103509205,0.08570121,89200.0,89199.0,0.06048]
[1765103510804,0.06072,89200.0,89199.0,0.06048]
[1765103511010,0.0857999,89200.0,89199.0,0.06048]
[1765103521114,0.5057999,89200.0,89199.0,0.06048]
[1765103522514,0.5186299,89200.0,89199.0,0.005]
[1765103522918,0.0704916,89186.0,89185.0,0.1092]
[1765103523211,0.07060502,89186.0,89185.0,0.13824]
[1765103523604,0.07060502,89186.0,89185.0,0.05854]
[1765103524508,0.07060502,89186.0,89185.0,0.06454]
[1765103524910,0.07060502,89186.0,89185.0,0.06854]
[1765103535019,0.07060502,89186.0,89185.0,0.0395]
[1765103535620,0.07060502,89186.0,89185.0,0.06842]
[1765103541526,0.43060502,89186.0,89185.0,0.06842]
[1765103543822,0.43060502,89186.0,89185.0,0.06742]
[1765103544026,0.43060502,89186.0,89185.0,0.06342]
[1765103545328,0.45566303,89186.0,89185.0,0.06342]
[1765103554531,0.16566303,89186.0,89185.0,0.06342]
[1765103554936,0.39566303,89186.0,89185.0,0.06342]
[1765103556534,0.09566303,89186.0,89185.0,0.06342]
[1765103556736,0.15566303,89186.0,89185.0,0.06342]
[1765103557736,0.39566303,89186.0,89185.0,0.06342]
[1765103559541,0.39566303,89186.0,89185.0,0.005]
[1765103559838,0.75646303,89186.0,89185.0,0.005]
[1765103561247,0.75646303,89186.0,89185.0,2.005]
[1765103564445,0.75646303,89186.0,89185.0,2.004]
[1765103564749,0.75646303,89186.0,89185.0,2.003]
[1765103574254,0.75646303,89186.0,89185.0,1.2244792]
[1765103574564,0.75646303,89186.0,89163.0,0.07464]
[1765103574565,0.05694,89164.0,89163.0,0.07464]
[1765103574759,0.08211208,89164.0,89163.0,0.07464]
[1765103575863,0.08211208,89164.0,89163.0,0.07964]
[1765103577463,0.08211208,89164.0,89163.0,0.06196]
[1765103577464,0.46211208,89164.0,89163.0,0.06196]
[1765103577669,0.46211208,89164.0,89163.0,0.06596]
[1765103578869,0.46211208,89164.0,89163.0,0.06296]
[1765103579371,0.46211208,89164.0,89163.0,0.05896]
[1765103579571,0.46211208,89164.0,89163.0,0.06196]
[1765103581874,0.08517208,89164.0,89163.0,0.06196]
[1765103582067,0.02517208,89164.0,89163.0,0.06196]
[1765103582271,0.00011407,89164.0,89163.0,0.41196]
[1765103582469,0.00016818,89172.0,89171.0,0.05696]
[1765103582770,0.00016818,89172.0,89171.0,0.80776]
[1765103583162,0.41774,89186.0,89185.0,0.05696]
[1765103583366,0.48287574,89186.0,89185.0,0.05696]
[1765103583662,0.45526574,89186.0,89185.0,0.05696]
[1765103584062,0.79526574,89186.0,89185.0,0.05696]
[1765103584466,0.79626574,89186.0,89185.0,0.05696]
[1765103584773,0.57926574,89186.0,89185.0,0.05696]
[1765103585868,0.60688215,89186.0,89185.0,0.05696]
[1765103586271,0.24608215,89186.0,89185.0,0.05696]
[1765103586471,0.21847215,89186.0,89185.0,0.05696]
[1765103586677,0.05847215,89186.0,89185.0,0.05696]
[1765103587080,0.08608215,89186.0,89185.0,0.05696]
[1765103589282,0.02914215,89186.0,89185.0,0.05696]
[1765103591478,0.05847215,89186.0,89185.0,0.05696]
[1765103591678,0.02914215,89186.0,89185.0,0.05696]
[1765103591881,0.05834215,89186.0,89185.0,0.05696]
[1765103594184,0.18743215,89186.0,89185.0,0.05696]
[1765103596384,0.16229,89186.0,89185.0,0.05696]
[1765103599387,0.16229,89186.0,89185.0,3.05696]
[1765103603383,0.53229,89186.0,89185.0,3.05696]
[1765103606087,0.39229,89186.0,89185.0,3.05696]
[1765103606288,0.16229,89186.0,89185.0,3.05696]
[1765103609301,0.1873179,89186.0,89185.0,3.05696]
[1765103610300,0.00016818,89194.0,89193.0,0.1915407]
[1765103610600,0.51909,89198.0,89197.0,0.16345]
[1765103610801,0.68909,89198.0,89197.0,0.16345]
[1765103612201,0.70209,89198.0,89197.0,0.16445]
[1765103612698,0.17129,89198.0,89197.0,0.17543822]
[1765103613398,0.0482,89198.0,89197.0,0.17643822]
[1765103613800,0.019,89198.0,89197.0,0.17643822]
[1765103615610,0.17729,89198.0,89197.0,0.16545]
[1765103622015,0.019,89198.0,89197.0,0.57545]
[1765103622620,0.04384528,89198.0,89197.0,0.57545]
[1765103623127,0.12617818,89206.0,89205.0,0.33682]
[1765103623918,0.24821818,89206.0,89205.0,0.3480292]
[1765103624319,0.25621818,89206.0,89205.0,0.3490292]
[1765103624817,0.26721818,89206.0,89205.0,0.3490292]
[1765103630326,0.26721818,89206.0,89205.0,0.33782]
[1765103630522,0.26721818,89206.0,89205.0,0.25548]
[1765103635029,0.291945,89206.0,89205.0,0.25548]
[1765103639225,0.291945,89206.0,89205.0,0.13307]
[1765103639729,0.291945,89206.0,89205.0,0.25548]
[1765103641836,0.291945,89206.0,89205.0,0.001]
[1765103641837,0.641945,89206.0,89205.0,0.001]
[1765103642132,0.2251,89198.0,89197.0,0.00016818]
[1765103642339,1.02062682,89198.0,89197.0,0.00016818]
[1765103643837,1.02562682,89198.0,89197.0,0.00016818]
[1765103648334,0.66482682,89198.0,89197.0,0.00016818]
[1765103648633,1.02562682,89198.0,89197.0,0.00016818]
[1765103649735,1.54578682,89198.0,89197.0,0.00016818]
[1765103651740,1.54578682,89198.0,89197.0,0.23031818]
[1765103651741,0.34482682,89198.0,89197.0,0.23031818]
[1765103651934,0.58482682,89198.0,89197.0,0.23031818]
[1765103655238,0.58482682,89198.0,89197.0,0.00016818]
[1765103659748,0.58482682,89198.0,89197.0,0.23031818]
[1765103661145,1.10498682,89198.0,89197.0,0.23031818]
[1765103662450,1.10498682,89198.0,89197.0,0.00016818]
[1765103669351,1.09998682,89198.0,89197.0,0.00016818]
[1765103669555,1.10498682,89198.0,89197.0,0.00016818]
[1765103670044,1.10498682,89198.0,89197.0,0.11681818]
[1765103670244,1.10498682,89198.0,89197.0,0.00016818]
[1765103671155,1.09998682,89198.0,89197.0,0.00016818]
[1765103671452,1.10498682,89198.0,89197.0,0.00016818]
[1765103673850,1.16541279,89198.0,89197.0,0.00016818]
[1765103674350,1.16041279,89198.0,89197.0,0.00016818]
[1765103674654,1.10498682,89198.0,89197.0,0.00016818]
[1765103675661,1.16541279,89198.0,89197.0,0.00016818]
[1765103675950,1.10498682,89198.0,89197.0,0.00016818]
[1765103678155,1.16554287,89198.0,89197.0,0.00016818]
[1765103678546,1.16554287,89198.0,89185.0,3.0]